bitfinex/quotes_BTCUSD_20251011
["timestamp","ask_amount","ask_price","bid_price","bid_amount"]
[1760145312537,0.37900821,112310.0,112300.0,0.001]
[1760145312961,0.37900821,112310.0,112300.0,0.10995]
[1760145313158,0.37900821,112310.0,112300.0,0.04653]
[1760145313488,0.37900821,112310.0,112300.0,0.001]
[1760145314149,0.37900821,112310.0,112300.0,0.24251439]
[1760145314363,0.35786821,112310.0,112300.0,0.28804439]
[1760145314572,0.00465821,112310.0,112300.0,0.38639439]
[1760145316741,0.00465821,112310.0,112300.0,0.28804439]
[1760145317578,0.02579821,112310.0,112300.0,0.001]
[1760145317749,0.06471768,112310.0,112300.0,0.001]
[1760145317929,0.06471768,112310.0,112300.0,0.0110124]
[1760145317930,0.02579821,112310.0,112300.0,0.0110124]
[1760145318163,0.02579821,112310.0,112300.0,0.001]
[1760145319004,0.21698403,112320.0,112300.0,0.001]
[1760145319799,0.203788,112310.0,112300.0,0.001]
[1760145319988,0.52564325,112310.0,112280.0,0.23256016]
[1760145320315,0.67799652,112320.0,112290.0,0.24145125]
[1760145320530,0.67799652,112320.0,112290.0,0.22364023]
[1760145320719,0.70370599,112320.0,112290.0,0.22364023]
[1760145320882,0.49993378,112310.0,112290.0,0.22364023]
[1760145321082,0.71260912,112320.0,112290.0,0.22364023]
[1760145321784,0.17807863,112310.0,112290.0,0.04553]
[1760145322012,0.17807863,112310.0,112280.0,0.33091016]
[1760145322214,0.34,112310.0,112280.0,0.33091016]
[1760145322429,0.34,112310.0,112290.0,0.1781088]
[1760145322647,0.34,112310.0,112290.0,0.2236388]
[1760145323073,0.34,112310.0,112300.0,0.17809439]
[1760145323281,0.34,112310.0,112300.0,0.28704439]
[1760145323478,0.34,112310.0,112300.0,0.10895]
[1760145323881,0.34,112310.0,112300.0,0.04553]
[1760145324087,0.34,112310.0,112300.0,0.28704439]
[1760145324706,0.01321,112330.0,112320.0,0.17806267]
[1760145324914,0.01321,112330.0,112320.0,0.06342]
[1760145325124,0.01321,112330.0,112320.0,0.04553]
[1760145325330,0.01321,112330.0,112310.0,0.22359547]
[1760145325743,0.5269658,112320.0,112290.0,0.22363735]
[1760145325996,0.55267527,112320.0,112290.0,0.22363735]
[1760145326278,0.55267527,112320.0,112290.0,0.17810989]
[1760145326702,0.18699313,112310.0,112280.0,0.04553]
[1760145326933,0.17809545,112300.0,112280.0,0.04553]
[1760145327156,0.51809619,112300.0,112270.0,0.30300231]
[1760145327358,0.51809619,112300.0,112270.0,0.23257047]
[1760145327658,0.54380566,112300.0,112270.0,0.23257047]
[1760145327886,0.51809619,112300.0,112270.0,0.23257047]
[1760145328092,0.51809619,112300.0,112270.0,0.2327215]
[1760145328295,1.02693468,112300.0,112270.0,0.22382229]
[1760145328500,0.1781107,112290.0,112270.0,0.00015103]
[1760145328676,0.34,112280.0,112270.0,0.00015103]
[1760145328874,0.51812611,112280.0,112270.0,0.00015103]
[1760145329107,1.01805989,112280.0,112270.0,0.00015103]
[1760145329393,1.0447717,112280.0,112270.0,0.00015103]
[1760145329597,0.36671181,112280.0,112270.0,0.00015103]
[1760145329800,0.02671181,112280.0,112270.0,0.241713]
[1760145330001,0.02671181,112280.0,112270.0,0.00015103]
[1760145330149,0.02671181,112280.0,112270.0,0.00083703]
[1760145330348,1.01804607,112290.0,112270.0,0.00083703]
[1760145330705,0.36671181,112290.0,112270.0,0.17899691]
[1760145330897,0.36671181,112290.0,112270.0,0.00015103]
[1760145331135,0.52664559,112290.0,112270.0,0.00061843]
[1760145331288,0.34,112280.0,112270.0,0.00282603]
[1760145331505,0.34,112280.0,112270.0,0.00015103]
[1760145331845,0.34,112280.0,112270.0,0.178293]
[1760145332444,0.34,112300.0,112280.0,0.17811719]
[1760145332644,0.6780136,112310.0,112280.0,0.22364719]
[1760145332944,0.70736011,112310.0,112280.0,0.17811719]
[1760145333163,0.02671181,112300.0,112280.0,0.17811719]
[1760145333367,0.70736011,112310.0,112280.0,0.22364719]
[1760145333580,0.6780136,112310.0,112280.0,0.22364719]
[1760145333788,0.31673487,112300.0,112280.0,0.22364719]
[1760145333991,0.17811028,112290.0,112270.0,0.04568103]
[1760145334144,0.17811028,112290.0,112270.0,0.00015103]
[1760145334529,0.17811098,112290.0,112270.0,0.00015103]
[1760145334732,0.17812611,112280.0,112270.0,0.00015103]
[1760145335459,0.67804476,112290.0,112270.0,0.00015103]
[1760145335859,0.34,112280.0,112270.0,0.00015103]
[1760145336582,0.51812611,112280.0,112270.0,0.00015103]
[1760145336787,0.34,112280.0,112270.0,0.00015103]
[1760145337978,1.01805989,112280.0,112270.0,0.00015103]
[1760145338418,0.17811098,112290.0,112270.0,0.00015103]
[1760145338660,1.01804476,112290.0,112270.0,0.00015103]
[1760145338874,0.51811098,112290.0,112270.0,0.00015103]
[1760145339259,0.17812611,112280.0,112270.0,0.00015103]
[1760145339428,0.67805989,112280.0,112270.0,0.00015103]
[1760145339841,1.01805989,112280.0,112270.0,0.00015103]
[1760145340043,1.0447717,112280.0,112270.0,0.00015103]
[1760145340425,1.07411821,112280.0,112270.0,0.00015103]
[1760145342756,0.57418443,112280.0,112270.0,0.00015103]
[1760145342985,1.08698374,112310.0,112270.0,0.292533]
[1760145343194,0.67803082,112300.0,112270.0,0.292533]
[1760145343386,0.67803082,112300.0,112270.0,0.00015103]
[1760145343387,0.17811212,112290.0,112270.0,0.00015103]
[1760145343620,0.34,112280.0,112270.0,0.00015103]
[1760145343818,0.51812611,112280.0,112270.0,0.00015103]
[1760145344089,1.0447717,112280.0,112270.0,0.00015103]
[1760145344531,0.17814786,112270.0,112240.0,0.05474093]
[1760145344749,0.34,112260.0,112240.0,0.23293]
[1760145346213,0.34,112260.0,112250.0,0.17817371]
[1760145346424,0.00015117,112270.0,112250.0,0.17817371]
[1760145346638,0.34,112260.0,112240.0,0.23293]
[1760145346825,0.34,112260.0,112250.0,0.18536845]
[1760145347127,0.34,112260.0,112250.0,0.17817371]
[1760145347269,0.34,112260.0,112250.0,0.29241371]
[1760145347724,0.34,112260.0,112240.0,0.23293]
[1760145347882,0.34,112260.0,112250.0,0.18234539]
[1760145348089,0.34,112260.0,112250.0,0.24243371]
[1760145348322,0.00015117,112270.0,112250.0,0.29241371]
[1760145348527,0.02686298,112270.0,112250.0,0.29241371]
[1760145349446,0.02686298,112270.0,112260.0,0.00331755]
[1760145349650,0.02686298,112270.0,112250.0,0.22815371]
[1760145349852,0.02671181,112260.0,112240.0,0.33232]
[1760145350057,0.02671181,112260.0,112240.0,0.23293]
[1760145350395,0.02671181,112260.0,112250.0,0.17817371]
[1760145350710,0.02666684,112260.0,112240.0,0.23293]
[1760145350974,0.48460856,112280.0,112250.0,0.17817352]
[1760145351154,0.49993378,112270.0,112250.0,0.1786777]
[1760145351741,0.49993378,112270.0,112250.0,0.17867572]
[1760145352813,0.71631273,112280.0,112250.0,0.17867572]
[1760145353023,0.18700175,112300.0,112260.0,0.22841343]
[1760145353236,1.01804405,112290.0,112260.0,0.22802784]
[1760145353604,0.17812713,112280.0,112260.0,0.11184]
[1760145353782,0.17814228,112270.0,112250.0,0.22854702]
[1760145354134,0.17814228,112270.0,112250.0,0.29051702]
[1760145354260,0.34,112260.0,112250.0,0.00050418]
[1760145355405,0.34,112260.0,112250.0,0.17867789]
[1760145355591,0.34,112260.0,112250.0,0.00050418]
[1760145356427,0.51815784,112260.0,112250.0,0.00050418]
[1760145356628,1.01809162,112260.0,112250.0,0.00050418]
[1760145357492,0.51815784,112260.0,112250.0,0.00050418]
[1760145357698,1.01809162,112260.0,112230.0,0.23313424]
[1760145357900,1.01859617,112260.0,112230.0,0.29510424]
[1760145358107,0.51866239,112260.0,112230.0,0.29510424]
[1760145358308,0.00050455,112260.0,112240.0,0.17818937]
[1760145358512,0.3398,112250.0,112240.0,0.17818937]
[1760145359188,0.3398,112250.0,112240.0,0.29002937]
[1760145359655,0.3398,112250.0,112240.0,0.29102937]
[1760145360178,0.3398,112250.0,112240.0,0.17918959]
[1760145360342,0.3398,112250.0,112240.0,0.001]
[1760145360521,0.00050455,112260.0,112240.0,0.17918959]
[1760145360723,0.17866386,112260.0,112240.0,0.17918959]
[1760145361057,0.17866386,112260.0,112250.0,0.00057753]
[1760145361256,0.50043833,112260.0,112250.0,0.00057753]
[1760145361447,0.00050455,112260.0,112250.0,0.00057753]
[1760145361805,0.00050455,112260.0,112250.0,0.00099205]
[1760145362396,0.17866239,112260.0,112240.0,0.17818931]
[1760145362543,0.34,112250.0,112230.0,0.23313424]
[1760145362742,0.34,112250.0,112230.0,0.29510424]
[1760145363383,0.34,112250.0,112240.0,0.17818959]
[1760145363532,0.34,112250.0,112230.0,0.31432431]
[1760145363533,0.34,112250.0,112230.0,0.23313424]
[1760145363933,0.17866239,112260.0,112240.0,0.24015959]
[1760145364141,0.00050455,112260.0,112250.0,0.00079251]
[1760145364339,0.00050455,112260.0,112250.0,0.00276363]
[1760145364563,0.34050455,112260.0,112250.0,0.38694734]
[1760145364753,0.34050455,112260.0,112250.0,0.11184]
[1760145365069,0.34050455,112260.0,112240.0,0.22805959]
[1760145365263,0.34050455,112260.0,112240.0,0.29002959]
[1760145365671,0.34050455,112260.0,112240.0,0.30925378]
[1760145366875,0.00050455,112260.0,112240.0,0.30925378]
[1760145367685,0.00050455,112260.0,112240.0,0.29002959]
[1760145367885,0.00050455,112260.0,112240.0,0.30925823]
[1760145368023,0.00050455,112260.0,112240.0,0.29002959]
[1760145368428,0.00050455,112260.0,112250.0,0.22675992]
[1760145368629,0.00050455,112260.0,112250.0,0.22415371]
[1760145368825,0.00050455,112260.0,112250.0,0.04598]
[1760145369124,0.00050455,112260.0,112240.0,0.32180959]
[1760145369326,0.20963239,112260.0,112240.0,0.31330952]
[1760145369574,0.20963239,112260.0,112240.0,0.13511993]
[1760145369746,0.20963239,112260.0,112240.0,0.11589]
[1760145370529,0.20963239,112260.0,112230.0,0.04998]
[1760145370530,0.51818959,112240.0,112230.0,0.04998]
[1760145370740,0.34,112240.0,112230.0,0.06602]
[1760145370947,0.3742277,112240.0,112230.0,0.06602]
[1760145371599,0.3742277,112240.0,112220.0,0.32203975]
[1760145371779,0.34,112240.0,112230.0,0.06602]
[1760145371974,0.40619,112240.0,112230.0,0.00010271]
[1760145372177,0.40619,112240.0,112230.0,0.001]
[1760145372335,0.40619,112240.0,112220.0,0.32203975]
[1760145372540,0.04138,112230.0,112220.0,0.24751941]
[1760145373000,0.26867547,112230.0,112220.0,0.01942966]
[1760145373416,0.64367836,112230.0,112220.0,0.0002]
[1760145373759,0.64367836,112230.0,112220.0,0.0012]
[1760145373760,1.14361214,112230.0,112220.0,0.0012]
[1760145373960,0.46457289,112230.0,112220.0,0.0002]
[1760145374160,0.64367836,112230.0,112220.0,0.0002]
[1760145374361,1.14361214,112230.0,112220.0,0.0012]
[1760145374559,1.17295865,112230.0,112220.0,0.0012]
[1760145374804,1.17295865,112230.0,112220.0,0.0002]
[1760145375006,1.17295865,112230.0,112220.0,0.0012]
[1760145375385,0.67302487,112230.0,112220.0,0.0012]
[1760145375567,1.17295865,112230.0,112220.0,0.0012]
[1760145376803,1.17295865,112230.0,112220.0,0.0002]
[1760145377353,1.14361214,112230.0,112220.0,0.0002]
[1760145377561,1.33309077,112230.0,112220.0,0.0002]
[1760145377711,1.73309077,112230.0,112220.0,0.0002]
[1760145377912,1.77180017,112230.0,112220.0,0.0002]
[1760145378249,0.46547289,112230.0,112220.0,0.0002]
[1760145378962,0.46457289,112230.0,112220.0,0.0002]
[1760145379164,0.64277836,112230.0,112220.0,0.0002]
[1760145379341,0.64367836,112230.0,112220.0,0.0002]
[1760145379525,0.67302487,112230.0,112220.0,0.0002]
[1760145379720,0.46547289,112230.0,112220.0,0.0002]
[1760145381226,0.64367836,112230.0,112220.0,0.0002]
[1760145381430,1.33309077,112230.0,112220.0,0.0002]
[1760145382690,0.4948194,112230.0,112220.0,0.0002]
[1760145382877,0.17819019,112240.0,112220.0,0.39308241]
[1760145382878,0.04138,112240.0,112220.0,0.39308241]
[1760145383077,0.03373711,112230.0,112220.0,0.0002]
[1760145383326,0.03422711,112230.0,112220.0,0.0002]
[1760145383698,0.37422711,112230.0,112220.0,0.17842135]
[1760145383894,0.37422711,112230.0,112220.0,0.0002]
[1760145384106,0.03373711,112230.0,112220.0,0.38417135]
[1760145384343,0.00050455,112260.0,112250.0,0.17817371]
[1760145384633,0.00050455,112260.0,112250.0,0.38392371]
[1760145384832,0.00067455,112260.0,112250.0,0.112]
[1760145384983,0.00045827,112260.0,112250.0,0.17817371]
[1760145385184,0.00045827,112260.0,112240.0,0.22416959]
[1760145385389,0.0333,112250.0,112240.0,0.22416959]
[1760145385588,0.0333,112250.0,112240.0,0.29018959]
[1760145386206,0.03404,112250.0,112230.0,0.32682037]
[1760145386406,0.26882418,112250.0,112230.0,0.05489027]
[1760145386610,0.11999651,112250.0,112230.0,0.1871147]
[1760145386809,0.09065,112250.0,112230.0,0.1871147]
[1760145387434,0.60063568,112240.0,112220.0,0.0002]
[1760145387635,0.01717,112230.0,112220.0,0.0002]
[1760145387844,0.19627547,112230.0,112220.0,0.0002]
[1760145388045,1.28217605,112230.0,112220.0,0.0002]
[1760145388627,0.67211015,112230.0,112220.0,0.0002]
[1760145388856,1.33217605,112230.0,112220.0,0.0002]
[1760145389165,1.35800888,112230.0,112220.0,0.0002]
[1760145391021,1.75800888,112230.0,112220.0,0.0002]
[1760145393628,1.09794298,112230.0,112220.0,0.0002]
[1760145393843,1.35800888,112230.0,112220.0,0.0002]
[1760145394690,0.67211015,112230.0,112220.0,0.0002]
[1760145394858,1.33217605,112230.0,112220.0,0.0002]
[1760145395073,1.35800888,112230.0,112220.0,0.0002]
[1760145396128,1.75800888,112230.0,112220.0,0.0002]
[1760145397092,0.51823723,112210.0,112200.0,0.004]
[1760145397313,1.26745064,112210.0,112200.0,0.004]
[1760145397535,1.32474064,112210.0,112200.0,0.004]
[1760145398289,1.32524474,112210.0,112200.0,0.004]
[1760145399069,1.72524474,112210.0,112200.0,0.004]
[1760145399668,1.06517884,112210.0,112200.0,0.004]
[1760145400012,1.72524474,112210.0,112200.0,0.004]
[1760145400423,1.29941191,112210.0,112200.0,0.004]
[1760145401711,1.32524474,112210.0,112200.0,0.004]
[1760145402559,1.72524474,112210.0,112200.0,0.004]
[1760145402977,1.26962723,112210.0,112200.0,0.004]
[1760145403185,1.31962723,112210.0,112200.0,0.004]
[1760145403382,1.34941191,112210.0,112200.0,0.004]
[1760145403677,1.37524474,112210.0,112200.0,0.004]
[1760145404265,1.34546006,112210.0,112200.0,0.004]
[1760145404637,1.31962723,112210.0,112200.0,0.004]
[1760145405029,0.51825316,112200.0,112170.0,0.3870115]
[1760145405298,1.25680906,112200.0,112170.0,0.3870115]
[1760145405500,1.25680906,112200.0,112170.0,0.31657966]
[1760145405701,0.02978468,112190.0,112170.0,0.32549469]
[1760145405841,1.25680906,112200.0,112170.0,0.32549469]
[1760145406218,0.36977,112180.0,112150.0,0.3292058]
[1760145406436,0.04219,112160.0,112140.0,0.22487155]
[1760145406822,0.10906,112150.0,112140.0,0.28633849]
[1760145407447,0.10906,112150.0,112140.0,0.10799]
[1760145407750,0.14233379,112150.0,112140.0,0.17834849]
[1760145407891,0.19952036,112150.0,112140.0,0.17834849]
[1760145408323,0.16675036,112150.0,112140.0,0.17834849]
[1760145408541,0.19952036,112150.0,112140.0,0.001]
[1760145408893,1.03791885,112150.0,112130.0,0.0271]
[1760145409091,0.05828418,112140.0,112130.0,0.0271]
[1760145409322,0.05828418,112140.0,112130.0,0.20546439]
[1760145409323,0.08958,112140.0,112130.0,0.20546439]
[1760145409490,0.84427064,112140.0,112130.0,0.0271]
[1760145409815,0.48825474,112140.0,112130.0,0.0271]
[1760145410020,0.57033474,112140.0,112130.0,0.17836439]
[1760145410225,0.57033474,112140.0,112120.0,0.2030904]
[1760145410429,0.45624,112130.0,112110.0,0.17322139]
[1760145410586,0.45624,112130.0,112110.0,0.12662139]
[1760145410587,0.18407,112120.0,112110.0,0.12662139]
[1760145410983,0.10285,112120.0,112110.0,0.00891981]
[1760145411188,0.13181418,112120.0,112110.0,0.18731602]
[1760145411365,0.55303418,112120.0,112110.0,0.18731602]
[1760145411553,1.21310008,112120.0,112100.0,0.0506]
[1760145411760,0.03123,112110.0,112100.0,0.18241183]
[1760145411952,0.21585418,112110.0,112100.0,0.18241183]
[1760145412213,0.58556474,112110.0,112100.0,0.004]
[1760145412538,0.49016474,112110.0,112100.0,0.29558213]
[1760145412660,0.49016474,112110.0,112100.0,0.38644213]
[1760145412661,0.34,112110.0,112100.0,0.38644213]
[1760145412862,0.34050348,112110.0,112100.0,0.38644213]
[1760145413089,0.34050348,112110.0,112100.0,0.38744213]
[1760145413292,0.00050348,112110.0,112100.0,0.29658213]
[1760145413705,0.04271348,112110.0,112100.0,0.29658213]
[1760145414154,0.18739348,112110.0,112100.0,0.005]
[1760145414336,0.90613412,112110.0,112100.0,0.005]
[1760145414669,0.90613412,112110.0,112100.0,0.18241213]
[1760145414821,0.00050348,112110.0,112100.0,0.38744213]
[1760145414989,0.09182348,112110.0,112100.0,0.22901213]
[1760145415191,0.09182348,112110.0,112100.0,0.18241213]
[1760145415192,0.43182348,112110.0,112100.0,0.18241213]
[1760145415393,0.52739348,112110.0,112100.0,0.005]
[1760145415629,0.52739348,112110.0,112100.0,0.18341213]
[1760145415834,0.52739348,112110.0,112100.0,0.29658213]
[1760145415835,0.43182348,112110.0,112100.0,0.29658213]
[1760145415988,0.34050348,112110.0,112100.0,0.38744213]
[1760145416184,0.18739348,112110.0,112100.0,0.005]
[1760145416448,1.24613412,112110.0,112100.0,0.005]
[1760145416651,1.12139356,112110.0,112100.0,0.005]
[1760145417016,1.21642356,112110.0,112100.0,0.005]
[1760145417218,1.16173055,112110.0,112090.0,0.22502772]
[1760145417388,0.40758465,112110.0,112100.0,0.24498213]
[1760145417591,0.37862047,112110.0,112100.0,0.24498213]
[1760145417837,0.37767047,112110.0,112100.0,0.29385213]
[1760145418020,0.34,112110.0,112100.0,0.38471213]
[1760145418989,0.0060217,112140.0,112130.0,0.17836439]
[1760145419333,0.0067317,112140.0,112130.0,0.00015117]
[1760145420094,0.0067317,112140.0,112130.0,0.17851556]
[1760145420340,0.0074217,112140.0,112130.0,0.29395556]
[1760145420534,0.0766517,112140.0,112130.0,0.00015117]
[1760145420738,0.37672895,112140.0,112130.0,0.00015117]
[1760145420937,0.34701839,112140.0,112130.0,0.17851556]
[1760145421210,0.35593335,112160.0,112140.0,0.17834849]
[1760145421211,0.07258056,112160.0,112140.0,0.17834849]
[1760145421417,0.6947759,112170.0,112150.0,0.11544]
[1760145421627,0.03471,112170.0,112150.0,0.38463259]
[1760145421902,0.37471,112170.0,112150.0,0.38463259]
[1760145422107,0.03471,112170.0,112150.0,0.38463259]
[1760145422280,0.0845,112170.0,112150.0,0.29377259]
[1760145422488,0.03471,112170.0,112160.0,0.17831669]
[1760145422691,0.37521,112170.0,112160.0,0.24488669]
[1760145422889,0.0391,112190.0,112170.0,0.17830079]
[1760145423214,0.00339,112180.0,112160.0,0.04887]
[1760145423346,0.099,112180.0,112160.0,0.2271865]
[1760145423571,0.035,112170.0,112160.0,0.22718669]
[1760145423795,0.035,112170.0,112160.0,0.29375669]
[1760145424061,0.03881,112170.0,112160.0,0.04902117]
[1760145424269,0.03881,112170.0,112160.0,0.05002117]
[1760145424684,0.37881,112170.0,112160.0,0.00115117]
[1760145424886,0.38946,112180.0,112160.0,0.38576786]
[1760145425094,0.06026,112170.0,112160.0,0.00115117]
[1760145425306,0.08475,112170.0,112160.0,0.00115117]
[1760145425533,1.29150166,112170.0,112160.0,0.00115117]
[1760145425738,1.26335669,112170.0,112160.0,0.00115117]
[1760145425950,1.29150166,112170.0,112160.0,0.00115117]
[1760145426154,1.0850559,112170.0,112160.0,0.00115117]
[1760145426363,1.26335669,112170.0,112160.0,0.00115117]
[1760145427025,1.31428712,112170.0,112160.0,0.00115117]
[1760145428102,1.31428712,112170.0,112160.0,0.00015117]
[1760145428753,1.33664764,112170.0,112160.0,0.00015117]
[1760145429163,1.34130836,112170.0,112160.0,0.00015117]
[1760145429360,0.68124246,112170.0,112160.0,0.00015117]
[1760145429520,1.34130836,112170.0,112160.0,0.00015117]
[1760145430092,1.29037793,112170.0,112160.0,0.00015117]
[1760145430228,1.34130836,112170.0,112160.0,0.00015117]
[1760145430442,0.51837736,112130.0,112110.0,0.07043184]
[1760145430646,1.2026962,112120.0,112110.0,0.07043184]
[1760145430948,0.42606,112120.0,112110.0,0.07043184]
[1760145431441,0.34,112120.0,112110.0,0.36744967]
[1760145431703,0.42347,112120.0,112110.0,0.001]
[1760145431876,0.60443148,112120.0,112100.0,0.04584]
[1760145432027,0.38307,112110.0,112090.0,0.11627184]
[1760145432226,0.04307,112100.0,112080.0,0.23320539]
[1760145432632,0.38307,112110.0,112090.0,0.38200804]
[1760145432859,0.38307,112110.0,112100.0,0.17841213]
[1760145433077,0.34,112110.0,112100.0,0.38199213]
[1760145433277,0.03608,112120.0,112100.0,0.38199213]
[1760145433278,0.03608,112120.0,112110.0,0.001]
[1760145433458,0.03657,112120.0,112100.0,0.31827213]
[1760145433636,0.04307,112110.0,112100.0,0.22425213]
[1760145433843,0.04307,112110.0,112100.0,0.28797213]
[1760145434280,0.38363096,112130.0,112110.0,0.17839621]
[1760145434554,0.08558,112120.0,112100.0,0.04584]
[1760145434749,0.04307,112110.0,112090.0,0.23318944]
[1760145434950,0.38363096,112130.0,112110.0,0.17839621]
[1760145435234,0.38363096,112130.0,112110.0,0.22423621]
[1760145435427,0.38363096,112130.0,112100.0,0.23317273]
[1760145435428,0.04356,112120.0,112100.0,0.23317273]
[1760145435623,0.09257,112120.0,112100.0,0.23317273]
[1760145435982,0.03608,112110.0,112100.0,0.22425213]
[1760145436212,0.53415232,112130.0,112100.0,0.28797213]
[1760145436565,0.00097,112110.0,112100.0,0.04584]
[1760145436780,0.00097,112110.0,112100.0,0.22425213]
[1760145436977,0.00097,112110.0,112100.0,0.001]
[1760145437184,0.68222969,112100.0,112080.0,0.04584]
[1760145437384,0.03404,112090.0,112070.0,0.04584]
[1760145437584,0.34,112080.0,112070.0,0.22429829]
[1760145437786,0.34,112080.0,112060.0,0.13986]
[1760145438019,0.36420047,112080.0,112070.0,0.22429989]
[1760145438221,0.34,112080.0,112070.0,0.28801989]
[1760145438423,0.84230445,112080.0,112060.0,0.31833565]
[1760145438690,1.07309385,112080.0,112070.0,0.00050348]
[1760145439481,1.07309385,112080.0,112070.0,0.00150348]
[1760145439684,0.34,112060.0,112050.0,0.18741381]
[1760145439884,0.34834667,112060.0,112050.0,0.29719009]
[1760145440675,0.34834667,112060.0,112050.0,0.39121009]
[1760145441327,0.34834667,112060.0,112050.0,0.39221009]
[1760145441650,0.00834667,112060.0,112050.0,0.39221009]
[1760145442049,0.00834667,112060.0,112050.0,0.22979627]
[1760145442249,0.00834667,112060.0,112050.0,0.38328551]
[1760145442449,0.00834667,112060.0,112050.0,0.4082855]
[1760145442996,0.00834667,112060.0,112050.0,0.41621008]
[1760145443364,0.00834667,112060.0,112050.0,0.36294772]
[1760145443517,0.00834667,112060.0,112050.0,0.36094772]
[1760145443838,0.01025357,112060.0,112050.0,0.36194772]
[1760145444069,0.01025357,112060.0,112050.0,0.38108388]
[1760145444279,0.01025357,112060.0,112050.0,0.38008388]
[1760145444415,0.01025357,112060.0,112050.0,0.38208388]
[1760145444617,0.01025357,112060.0,112050.0,0.35708389]
[1760145444826,0.01025357,112060.0,112050.0,0.38208388]
[1760145445442,0.4127,112100.0,112090.0,0.17842804]
[1760145445443,0.34,112100.0,112090.0,0.17842804]
[1760145445690,0.55126445,112120.0,112100.0,0.17841213]
[1760145445917,0.55126445,112120.0,112100.0,0.22425213]
[1760145446102,0.04224,112110.0,112100.0,0.22425213]
[1760145446367,0.55789445,112110.0,112080.0,0.23320615]
[1760145446532,0.03192,112100.0,112090.0,0.1784272]
[1760145446775,0.34,112070.0,112040.0,0.02393788]
[1760145447038,0.34,112070.0,112050.0,0.05078535]
[1760145447039,0.03173,112060.0,112050.0,0.05078535]
[1760145447177,0.03173,112060.0,112050.0,0.04584]
[1760145447538,0.03215,112060.0,112050.0,0.18344096]
[1760145447661,0.03215,112060.0,112040.0,0.32728744]
[1760145447860,0.03215,112060.0,112040.0,0.2334184]
[1760145448571,0.04272,112050.0,112040.0,0.00015096]
[1760145448826,0.38272,112050.0,112040.0,0.0010106]
[1760145448996,1.07670619,112050.0,112040.0,0.00015096]
[1760145449162,1.10414743,112050.0,112040.0,0.00015096]
[1760145449625,0.92565569,112050.0,112040.0,0.00015096]
[1760145450176,0.41071124,112050.0,112040.0,0.18059937]
[1760145450371,0.41071124,112050.0,112040.0,0.22449863]
[1760145450663,1.00368066,112050.0,112040.0,0.00015096]
[1760145450836,1.1821724,112050.0,112040.0,0.00015096]
[1760145451789,0.97553569,112050.0,112040.0,0.00015096]
[1760145452003,0.94809445,112050.0,112040.0,0.00015096]
[1760145452416,1.15404065,112050.0,112040.0,0.00015096]
[1760145452621,1.18218562,112050.0,112040.0,0.00015096]
[1760145452989,1.15404065,112050.0,112040.0,0.00015096]
[1760145453129,1.18218562,112050.0,112040.0,0.00015096]
[1760145453533,1.17653531,112050.0,112040.0,0.00015096]
[1760145453760,1.17465819,112050.0,112040.0,0.00015096]
[1760145453915,0.67235374,112050.0,112040.0,0.00015096]
[1760145454118,1.15902868,112050.0,112040.0,0.00015096]
[1760145454332,1.1246231,112050.0,112040.0,0.00015096]
[1760145454567,1.12082248,112050.0,112040.0,0.00015096]
[1760145454769,1.143183,112050.0,112040.0,0.00015096]
[1760145454972,1.13936401,112050.0,112040.0,0.00015096]
[1760145455522,1.1049394,112050.0,112040.0,0.00015096]
[1760145455982,1.10076223,112050.0,112040.0,0.00015096]
[1760145456122,1.09889256,112050.0,112040.0,0.00015096]
[1760145456324,0.5785236,112030.0,112020.0,0.0020069]
[1760145456528,0.70053923,112030.0,112020.0,0.0020069]
[1760145456776,1.16587166,112030.0,112020.0,0.0020069]
[1760145457088,1.13933376,112030.0,112020.0,0.0020069]
[1760145457289,0.01895694,112030.0,112020.0,0.0020069]
[1760145457490,0.75361193,112030.0,112020.0,0.0020069]
[1760145457819,0.73051142,112030.0,112020.0,0.0020069]
[1760145458160,0.88778991,112030.0,112020.0,0.0020069]
[1760145458379,1.06444346,112030.0,112020.0,0.0020069]
[1760145458924,1.44513614,112030.0,112020.0,0.0020069]
[1760145459081,1.46908601,112030.0,112020.0,0.0020069]
[1760145459286,1.46722785,112030.0,112020.0,0.0020069]
[1760145459566,0.98179631,112030.0,112020.0,0.0020069]
[1760145459771,1.48410076,112030.0,112020.0,0.0020069]
[1760145459993,0.73068885,112020.0,112010.0,6.28803268]
[1760145460210,0.77613318,112020.0,112010.0,6.28803268]
[1760145460416,0.77421581,112020.0,112010.0,6.28803268]
[1760145460724,0.73979255,112020.0,112010.0,6.28803268]
[1760145460934,0.73520349,112020.0,112010.0,6.28803268]
[1760145461191,0.73520349,112020.0,112010.0,6.2620073]
[1760145461402,0.73333129,112020.0,112010.0,6.2620073]
[1760145461563,0.71269803,112020.0,112010.0,6.2620073]
[1760145461773,1.04810945,112020.0,112010.0,6.23862217]
[1760145462015,1.04616877,112020.0,112010.0,6.23862217]
[1760145462219,0.54386432,112020.0,112010.0,6.23862217]
[1760145462573,1.04598929,112020.0,112010.0,6.23862217]
[1760145462780,1.01151675,112020.0,112010.0,6.23862217]
[1760145462962,1.00692769,112020.0,112010.0,6.23862217]
[1760145463169,1.00231628,112020.0,112010.0,6.23862217]
[1760145463481,1.04154333,112020.0,112010.0,6.23862217]
[1760145463625,0.69688512,112020.0,112010.0,6.23862217]
[1760145463833,0.69684399,112020.0,112010.0,6.23862217]
[1760145464158,0.68423675,112020.0,112010.0,6.23862217]
[1760145464343,0.67562192,112020.0,112010.0,6.23862217]
[1760145464547,1.01226551,112020.0,112010.0,6.23862217]
[1760145465356,1.01039954,112020.0,112010.0,6.23862217]
[1760145465598,1.00854113,112020.0,112010.0,6.23862217]
[1760145465882,0.97415817,112020.0,112010.0,6.23862217]
[1760145466038,0.95038482,112020.0,112010.0,6.23862217]
[1760145466240,0.85375539,112020.0,112010.0,6.23862217]
[1760145466511,1.03229493,112020.0,112010.0,6.23862217]
[1760145466635,1.03042272,112020.0,112010.0,6.23862217]
[1760145467022,1.00543969,112020.0,112010.0,6.23862217]
[1760145467196,1.00358984,112020.0,112010.0,6.23862217]
[1760145468080,1.05322276,112020.0,112010.0,6.23862217]
[1760145468663,1.07558328,112020.0,112010.0,6.23862217]
[1760145469287,0.26001298,112020.0,112010.0,6.23862217]
[1760145469451,0.76231743,112020.0,112010.0,6.23862217]
[1760145469681,0.23765246,112020.0,112010.0,6.23862217]
[1760145469882,0.69032399,112020.0,112010.0,6.23862217]
[1760145470091,0.71423657,112020.0,112010.0,6.23849025]
[1760145470287,0.74003613,112020.0,112010.0,6.23849025]
[1760145471095,0.69032399,112020.0,112010.0,6.23849025]
[1760145471299,1.03032399,112020.0,112010.0,6.23849025]